fUSD/lending_fUSD_20260513
["ID","MTS","AMOUNT","RATE_DAILY","PERIOD"]
[422165754,1778641847000,-500.0,0.00036068,30]
[422165755,1778641847000,-151.0,0.00036157,14]
[422165763,1778641847000,-2283.94,0.000366,14]
[422165766,1778641847000,-151.0,0.00036629,30]
[422165767,1778641847000,-152.0,0.00036629,30]
[422165781,1778641847000,-500.0,0.00036858,7]
[422165778,1778641847000,-157.57,0.0003669,30]
[422165769,1778641847000,-156.0,0.00036634,30]
[422165772,1778641847000,-1294.0,0.00036641,30]
[422165783,1778641847000,-40394.0,0.00036859,60]
[422165784,1778641847000,-743.4,0.000369,7]
[422165770,1778641847000,-191.0,0.00036641,30]
[422165779,1778641847000,-350.0,0.00036849,5]
[422165773,1778641847000,-157.0,0.00036641,30]
[422165775,1778641847000,-154.0,0.00036641,30]
[422165786,1778641847000,-743.4,0.000369,7]
[422165776,1778641847000,-40394.0,0.00036685,60]
[422165798,1778641847000,-604.28857032,0.00037143,2]
[422165797,1778641847000,-300.0,0.00037143,2]
[422165789,1778641847000,-40394.0,0.00037034,60]
[422165794,1778641847000,-40400.0,0.00037121,60]
[422165790,1778641847000,-299.30487589,0.0003708,40]
[422165800,1778641847000,-300.0,0.00037143,2]
[422165703,1778641847000,-151.0,0.00035809,7]
[422165792,1778641847000,-582.06260498,0.00037102,2]
[422165795,1778641847000,-364.52848235,0.00037143,2]
[422165802,1778641847000,-527.6022146,0.00037143,2]
[422165752,1778641847000,-500.0,0.00036068,30]
[422165753,1778641847000,-500.0,0.00036068,30]
[422165787,1778641847000,-1000.0,0.00036986,120]
[422165748,1778641847000,-1000.0,0.00036048,2]
[422165760,1778641847000,-12411.95,0.00036479,14]
[422165711,1778641847000,-178.384317,0.00035809,7]
[422165716,1778641847000,-333.861651,0.00035809,7]
[422165727,1778641847000,-1214.457842,0.00035809,7]
[422165714,1778641847000,-178.384317,0.00035809,7]
[422165710,1778641847000,-178.384317,0.00035809,7]
[422165717,1778641847000,-465.298313,0.00035809,7]
[422165726,1778641847000,-465.298313,0.00035809,7]
[422165723,1778641847000,-465.298313,0.00035809,7]
[422165719,1778641847000,-333.861651,0.00035809,7]
[422165725,1778641847000,-333.861651,0.00035809,7]
[422165729,1778641847000,-1214.457842,0.00035809,7]
[422165736,1778641847000,-184.09,0.00035809,30]
[422165745,1778641847000,-41923.0,0.00035985,60]
[422165722,1778641847000,-333.861651,0.00035809,7]
[422165732,1778641847000,-1214.457842,0.00035809,7]
[422165749,1778641847000,-1000.0,0.00036048,2]
[422165750,1778641847000,-1000.0,0.00036048,2]
[422165758,1778641847000,-481.23785255,0.00036421,2]
[422165761,1778641847000,-40394.0,0.0003651,60]
[422165742,1778641847000,-179.53,0.00035984,5]
[422165735,1778641847000,-159.119438,0.00035809,7]
[422165739,1778641847000,-281.24825172,0.000359,120]
[422165741,1778641847000,-150.0,0.00035981,2]
[422165730,1778641847000,-1214.457842,0.00035809,7]
[422165746,1778641847000,-6423.5182055,0.00036018,2]
[422165738,1778641847000,-350.0,0.0003589,5]
[422165734,1778641847000,-151.0,0.00035809,7]
[422165743,1778641847000,-179.53,0.00035984,5]
[422165854,1778641848000,-300.0,0.00037143,2]
[422165860,1778641848000,-300.60852153,0.00037143,2]
[422165853,1778641848000,-300.0,0.00037143,2]
[422165862,1778641848000,-300.0,0.00037143,2]
[422165841,1778641848000,-300.0,0.00037143,2]
[422165851,1778641848000,-300.0,0.00037143,2]
[422165858,1778641848000,-300.0,0.00037143,2]
[422165852,1778641848000,-1099.20837018,0.00037143,2]
[422165843,1778641848000,-300.0,0.00037143,2]
[422165842,1778641848000,-463.72172131,0.00037143,2]
[422165850,1778641848000,-317.48500943,0.00037143,2]
[422165855,1778641848000,-300.0,0.00037143,2]
[422165866,1778641848000,-300.0,0.00037143,2]
[422165856,1778641848000,-300.0,0.00037143,2]
[422165859,1778641848000,-300.46344089,0.00037143,2]
[422165861,1778641848000,-300.0,0.00037143,2]
[422165863,1778641848000,-300.51123215,0.00037143,2]
[422165868,1778641848000,-604.28857032,0.00037143,2]
[422165865,1778641848000,-300.0,0.00037143,2]
[422165867,1778641848000,-300.6276304,0.00037143,2]
[422165864,1778641848000,-492.55383622,0.00037143,2]
[422165869,1778641848000,-300.0,0.00037143,2]
[422165872,1778641848000,-527.6022146,0.00037143,2]
[422165875,1778641848000,-725.87349266,0.00037143,2]
[422165849,1778641848000,-300.98575595,0.00037143,2]
[422165857,1778641848000,-300.0,0.00037143,2]
[422165845,1778641848000,-300.0,0.00037143,2]
[422165826,1778641848000,-526.74681901,0.00037143,2]
[422165840,1778641848000,-300.0,0.00037143,2]
[422165803,1778641848000,-300.44422917,0.00037143,2]
[422165806,1778641848000,-893.15010961,0.00037143,2]
[422165805,1778641848000,-1066.61966841,0.00037143,2]
[422165808,1778641848000,-725.87349266,0.00037143,2]
[422165809,1778641848000,-300.0,0.00037143,2]
[422165874,1778641848000,-893.15010961,0.00037143,2]
[422165817,1778641848000,-300.0,0.00037143,2]
[422165812,1778641848000,-300.0,0.00037143,2]
[422165811,1778641848000,-301.70878526,0.00037143,2]
[422165824,1778641848000,-1911.85385745,0.00037143,2]
[422165819,1778641848000,-300.0,0.00037143,2]
[422165814,1778641848000,-300.48362119,0.00037143,2]
[422165847,1778641848000,-483.96406548,0.00037143,2]
[422165822,1778641848000,-300.0,0.00037143,2]
[422165829,1778641848000,-300.51493316,0.00037143,2]
[422165832,1778641848000,-1151.2173902,0.00037143,2]
[422165833,1778641848000,-309.50271907,0.00037143,2]
[422165838,1778641848000,-300.0,0.00037143,2]
[422165836,1778641848000,-1755.48763153,0.00037143,2]
[422165834,1778641848000,-867.57379394,0.00037143,2]
[422165837,1778641848000,-300.0,0.00037143,2]
[422165835,1778641848000,-300.0,0.00037143,2]
[422165844,1778641848000,-451.7860235,0.00037143,2]
[422165839,1778641848000,-310.77293505,0.00037143,2]
[422165846,1778641848000,-300.0,0.00037143,2]
[422165848,1778641848000,-309.75646752,0.00037143,2]
[422165816,1778641848000,-300.0,0.00037143,2]
[422165870,1778641848000,-300.0,0.00037143,2]
[422165820,1778641848000,-853.95058635,0.00037143,2]
[422165871,1778641848000,-300.0,0.00037143,2]
[422165908,1778641848000,-1094.44656271,0.00037143,2]
[422165910,1778641848000,-300.0,0.00037143,2]
[422165906,1778641848000,-309.75646752,0.00037143,2]
[422165911,1778641848000,-300.46094175,0.00037143,2]
[422165907,1778641848000,-300.0,0.00037143,2]
[422165912,1778641848000,-400.43147592,0.00037143,2]
[422165909,1778641848000,-300.0,0.00037143,2]
[422165914,1778641848000,-2049.4871,0.00037149,2]
[422165915,1778641848000,-150.5,0.00037149,2]
[422165917,1778641848000,-40394.0,0.00037208,60]
[422165916,1778641848000,-515.78860203,0.00037208,2]
[422165924,1778641848000,-227.602348,0.00037382,7]
[422165905,1778641848000,-483.96406548,0.00037143,2]
[422165923,1778641848000,-227.602348,0.00037382,7]
[422165919,1778641848000,-40394.0,0.00037382,60]
[422165922,1778641848000,-227.602348,0.00037382,7]
[422165920,1778641848000,-151.0,0.00037382,7]
[422165921,1778641848000,-227.602348,0.00037382,7]
[422165927,1778641848000,-500.0,0.00037556,7]
[422165926,1778641848000,-1353.0,0.00037536,2]
[422165928,1778641848000,-40394.0,0.00037557,60]
[422165929,1778641848000,-2049.4871,0.00037613,2]
[422165932,1778641848000,-214.86924866,0.00037671,30]
[422165931,1778641848000,-1000.0,0.00037615,2]
[422165930,1778641848000,-1000.0,0.00037615,2]
[422165873,1778641848000,-1066.61966841,0.00037143,2]
[422165925,1778641848000,-995.812,0.00037406,48]
[422165902,1778641848000,-300.0,0.00037143,2]
[422165918,1778641848000,-2049.4871,0.00037381,2]
[422165904,1778641848000,-300.0,0.00037143,2]
[422165913,1778641848000,-150.5,0.00037149,2]
[422165877,1778641848000,-301.70878526,0.00037143,2]
[422165888,1778641848000,-309.50271907,0.00037143,2]
[422165884,1778641848000,-300.0,0.00037143,2]
[422165886,1778641848000,-526.74681901,0.00037143,2]
[422165880,1778641848000,-348.57884027,0.00037143,2]
[422165882,1778641848000,-333.52267303,0.00037143,2]
[422165878,1778641848000,-300.0,0.00037143,2]
[422165885,1778641848000,-1917.6869927,0.00037143,2]
[422165883,1778641848000,-853.95058635,0.00037143,2]
[422165876,1778641848000,-300.0,0.00037143,2]
[422165879,1778641848000,-300.48362119,0.00037143,2]
[422165881,1778641848000,-300.0,0.00037143,2]
[422165901,1778641848000,-451.7860235,0.00037143,2]
[422165887,1778641848000,-1146.85439814,0.00037143,2]
[422165894,1778641848000,-300.57597218,0.00037143,2]
[422165889,1778641848000,-300.55580641,0.00037143,2]
[422165897,1778641848000,-300.55024054,0.00037143,2]
[422165900,1778641848000,-300.0,0.00037143,2]
[422165890,1778641848000,-864.21260631,0.00037143,2]
[422165898,1778641848000,-463.72172131,0.00037143,2]
[422165893,1778641848000,-300.0,0.00037143,2]
[422165891,1778641848000,-300.54001455,0.00037143,2]
[422165892,1778641848000,-1755.48763153,0.00037143,2]
[422165896,1778641848000,-300.0,0.00037143,2]
[422165895,1778641848000,-310.77293505,0.00037143,2]
[422165899,1778641848000,-300.0,0.00037143,2]
[422165903,1778641848000,-300.0,0.00037143,2]
[422165966,1778641849000,-218.3703,0.00038077,2]
[422165970,1778641849000,-200.0,0.00038124,6]
[422165960,1778641849000,-220.16,0.00038046,2]
[422165972,1778641849000,-157.57,0.0003822,60]
[422165967,1778641849000,-40394.0,0.0003808,60]
[422165971,1778641849000,-510.0,0.00038164,2]
[422165964,1778641849000,-223.8272,0.00038077,2]
[422165968,1778641849000,-570.79180423,0.000381,33]
[422165975,1778641849000,-175.88953785,0.00038329,120]
[422165965,1778641849000,-2049.4871,0.00038077,2]
[422165976,1778641849000,-174.18846205,0.0003835,120]
[422165974,1778641849000,-2049.4871,0.00038309,2]
[422165969,1778641849000,-2283.94,0.000381,14]
[422165973,1778641849000,-40394.0,0.00038254,60]
[422165987,1778641849000,-500.0,0.00038356,2]
[422165977,1778641849000,-1001.6946586,0.00038356,7]
[422165981,1778641849000,-500.0,0.00038356,2]
[422165986,1778641849000,-500.0,0.00038356,2]
[422165988,1778641849000,-500.0,0.00038356,2]
[422165979,1778641849000,-500.0,0.00038356,2]
[422165982,1778641849000,-500.0,0.00038356,2]
[422165985,1778641849000,-500.0,0.00038356,2]
[422165980,1778641849000,-500.0,0.00038356,2]
[422165984,1778641849000,-500.0,0.00038356,2]
[422165983,1778641849000,-500.0,0.00038356,2]
[422165989,1778641849000,-500.0,0.00038356,2]
[422166000,1778641849000,-500.0,0.00038356,2]
[422165978,1778641849000,-500.0,0.00038356,2]
[422165958,1778641849000,-200.86501189,0.00038,2]
[422165937,1778641849000,-151.0,0.00037731,7]
[422165959,1778641849000,-12728.85214889,0.00038,2]
[422165990,1778641849000,-415.69729798,0.00038356,2]
[422165933,1778641849000,-12411.95,0.00037676,30]
[422165936,1778641849000,-151.0,0.00037731,7]
[422165934,1778641849000,-417.0,0.00037695,2]
[422165935,1778641849000,-40394.0,0.00037731,60]
[422165938,1778641849000,-158.075942,0.00037731,7]
[422165940,1778641849000,-151.0,0.00037731,7]
[422165947,1778641849000,-151.0,0.00037731,7]
[422165941,1778641849000,-151.0,0.00037731,7]
[422165939,1778641849000,-151.0,0.00037731,7]
[422165948,1778641849000,-151.0,0.00037731,7]
[422165949,1778641849000,-151.0,0.00037731,7]
[422165942,1778641849000,-361.804076,0.00037731,7]
[422165944,1778641849000,-361.804076,0.00037731,7]
[422165946,1778641849000,-151.0,0.00037731,7]
[422165945,1778641849000,-361.804076,0.00037731,7]
[422165943,1778641849000,-361.804076,0.00037731,7]
[422165961,1778641849000,-200.0,0.00038055,6]
[422165951,1778641849000,-1444.0,0.00037753,120]
[422165952,1778641849000,-150.0,0.0003778,2]
[422165950,1778641849000,-152.0,0.00037735,5]
[422165962,1778641849000,-200.0,0.00038056,6]
[422165963,1778641849000,-200.0,0.00038057,6]
[422165953,1778641849000,-350.0,0.00037808,5]
[422165956,1778641849000,-40400.0,0.00037906,60]
[422165955,1778641849000,-40394.0,0.00037906,60]
[422165954,1778641849000,-2049.4871,0.00037845,2]
[422165957,1778641849000,-306.15555939,0.00038,2]
[422165991,1778641849000,-500.0,0.00038356,2]
[422165995,1778641849000,-407.19620485,0.00038356,2]
[422165996,1778641849000,-500.0,0.00038356,2]
[422166029,1778641849000,-225.0,0.00038356,2]
[422166028,1778641849000,-932.48183126,0.00038356,7]
[422166027,1778641849000,-1000.0,0.00038356,7]
[422166037,1778641849000,-929.64,0.00038469,2]
[422166032,1778641849000,-16779.8314,0.00038428,30]
[422166025,1778641849000,-458.37215967,0.00038356,2]
[422166030,1778641849000,-385.59,0.00038356,120]
[422166034,1778641849000,-929.64,0.00038467,2]
[422166035,1778641849000,-929.64,0.00038467,2]
[422166031,1778641849000,-500.0,0.00038417,7]
[422166033,1778641849000,-40394.0,0.00038429,120]
[422166039,1778641849000,-929.67,0.00038471,2]
[422166042,1778641849000,-49649.27643564,0.000385,2]
[422166044,1778641849000,-330.14,0.00038543,120]
[422166048,1778641849000,-180.46419471,0.00038632,30]
[422166043,1778641849000,-2049.4871,0.00038542,2]
[422166038,1778641849000,-929.64,0.00038469,2]
[422166040,1778641849000,-929.64,0.00038471,2]
[422166045,1778641849000,-184.09,0.00038549,30]
[422166041,1778641849000,-929.64,0.00038471,2]
[422166046,1778641849000,-153.39,0.00038562,120]
[422166047,1778641849000,-40394.0,0.00038603,120]
[422166049,1778641849000,-330.14,0.00038643,120]
[422166051,1778641849000,-330.14,0.00038743,120]
[422166052,1778641849000,-350.0,0.00038767,5]
[422166054,1778641849000,-40394.0,0.00038778,120]
[422166053,1778641849000,-2049.4871,0.00038774,2]
[422166026,1778641849000,-1000.0,0.00038356,7]
[422166036,1778641849000,-929.64,0.00038469,2]
[422166050,1778641849000,-40400.0,0.0003869,120]
[422166018,1778641849000,-500.0,0.00038356,2]
[422166020,1778641849000,-500.0,0.00038356,2]
[422165999,1778641849000,-500.0,0.00038356,2]
[422165997,1778641849000,-500.0,0.00038356,2]
[422165993,1778641849000,-500.0,0.00038356,2]
[422165992,1778641849000,-500.0,0.00038356,2]
[422165994,1778641849000,-500.0,0.00038356,2]
[422166010,1778641849000,-500.0,0.00038356,2]
[422166002,1778641849000,-500.0,0.00038356,2]
[422166006,1778641849000,-500.0,0.00038356,2]
[422166001,1778641849000,-500.0,0.00038356,2]
[422166011,1778641849000,-500.0,0.00038356,2]
[422166004,1778641849000,-500.0,0.00038356,2]
[422166007,1778641849000,-500.0,0.00038356,2]
[422166003,1778641849000,-500.0,0.00038356,2]
[422165998,1778641849000,-500.0,0.00038356,2]
[422166005,1778641849000,-500.0,0.00038356,2]
[422166012,1778641849000,-500.0,0.00038356,2]
[422166022,1778641849000,-500.0,0.00038356,2]
[422166017,1778641849000,-500.0,0.00038356,2]
[422166014,1778641849000,-500.0,0.00038356,2]
[422166021,1778641849000,-500.0,0.00038356,2]
[422166024,1778641849000,-500.0,0.00038356,2]
[422166016,1778641849000,-500.0,0.00038356,2]
[422166008,1778641849000,-500.0,0.00038356,2]
[422166019,1778641849000,-500.0,0.00038356,2]
[422166009,1778641849000,-500.0,0.00038356,2]
[422166015,1778641849000,-387.57612507,0.00038356,2]
[422166023,1778641849000,-500.0,0.00038356,2]
[422166013,1778641849000,-500.0,0.00038356,2]
[422166084,1778641850000,-5000.0,0.0003925,2]
[422166086,1778641850000,-40394.0,0.00039301,120]
[422166082,1778641850000,-39401.69669405,0.00039219,2]
[422166085,1778641850000,-5000.0,0.0003925,2]
[422166079,1778641850000,-171.3357043,0.00039208,120]
[422166087,1778641850000,-350.0,0.00039316,8]
[422166093,1778641850000,-35815.04492194,0.0003949,2]
[422166089,1778641850000,-2283.94,0.000394,14]
[422166096,1778641850000,-1561.696031,0.000396,35]
[422166083,1778641850000,-330.14,0.00039243,120]
[422166091,1778641850000,-40394.0,0.00039475,120]
[422166092,1778641850000,-40400.0,0.00039475,120]
[422166090,1778641850000,-330.14,0.00039443,120]
[422166097,1778641850000,-330.14,0.00039643,120]
[422166099,1778641850000,-52960.2252,0.0003966,2]
[422166094,1778641850000,-330.14,0.00039543,120]
[422166098,1778641850000,-40394.0,0.0003965,120]
[422166101,1778641850000,-167.53000894,0.00039688,2]
[422166102,1778641850000,-187.65972801,0.00039688,2]
[422166088,1778641850000,-330.14,0.00039343,120]
[422166103,1778641850000,-209.09678867,0.00039688,2]
[422166095,1778641850000,-1816.11,0.00039545,120]
[422166080,1778641850000,-159.0818048,0.00039208,120]
[422166067,1778641850000,-1332.76441182,0.00039,120]
[422166081,1778641850000,-1816.15,0.00039219,120]
[422166105,1778641850000,-161.6928728,0.00039688,2]
[422166056,1778641850000,-9584.70279639,0.00038834,2]
[422166055,1778641850000,-269.391,0.00038808,120]
[422166057,1778641850000,-330.14,0.00038843,120]
[422166058,1778641850000,-12411.95,0.00038874,30]
[422166059,1778641850000,-2000.0,0.000389,7]
[422166060,1778641850000,-330.14,0.00038943,120]
[422166061,1778641850000,-40394.0,0.00038952,120]
[422166063,1778641850000,-160.27959462,0.00038999,7]
[422166062,1778641850000,-541.63382943,0.00038963,120]
[422166064,1778641850000,-305.0,0.00039,30]
[422166065,1778641850000,-160.0,0.00039,120]
[422166068,1778641850000,-1007.40268815,0.00039,2]
[422166069,1778641850000,-3111.34265575,0.00039,14]
[422166066,1778641850000,-31292.29656827,0.00039,2]
[422166070,1778641850000,-2049.4871,0.00039006,2]
[422166071,1778641850000,-157.87753675,0.00039038,120]
[422166072,1778641850000,-330.14,0.00039043,120]
[422166076,1778641850000,-151.4242103,0.00039208,120]
[422166073,1778641850000,-40394.0,0.00039127,120]
[422166074,1778641850000,-330.14,0.00039143,120]
[422166075,1778641850000,-1000.0,0.00039183,2]
[422166078,1778641850000,-164.0556012,0.00039208,120]
[422166077,1778641850000,-412.9687174,0.00039208,120]
[422166109,1778641850000,-152.1473509,0.00039688,2]
[422166100,1778641850000,-150.0,0.00039669,2]
[422166107,1778641850000,-166.01195424,0.00039688,2]
[422166137,1778641850000,-350.0,0.00039726,5]
[422166135,1778641850000,-202.03597522,0.00039711,2]
[422166136,1778641850000,-981.3682,0.00039713,30]
[422166138,1778641850000,-500.0,0.00039726,15]
[422166142,1778641850000,-500.0,0.00039726,15]
[422166139,1778641850000,-500.0,0.00039726,15]
[422166141,1778641850000,-500.0,0.00039726,15]
[422166140,1778641850000,-500.0,0.00039726,15]
[422166144,1778641850000,-500.0,0.00039726,15]
[422166143,1778641850000,-500.0,0.00039726,15]
[422166147,1778641850000,-500.0,0.00039726,15]
[422166145,1778641850000,-500.0,0.00039726,15]
[422166146,1778641850000,-500.0,0.00039726,15]
[422166153,1778641850000,-500.0,0.00039726,15]
[422166148,1778641850000,-500.0,0.00039726,15]
[422166151,1778641850000,-500.0,0.00039726,15]
[422166149,1778641850000,-500.0,0.00039726,15]
[422166150,1778641850000,-500.0,0.00039726,15]
[422166155,1778641850000,-500.0,0.00039726,15]
[422166154,1778641850000,-500.0,0.00039726,15]
[422166157,1778641850000,-500.0,0.00039726,15]
[422166156,1778641850000,-500.0,0.00039726,15]
[422166108,1778641850000,-155.77672896,0.00039688,2]
[422166134,1778641850000,-186.57851817,0.00039711,2]
[422166129,1778641850000,-199.04636351,0.00039711,2]
[422166152,1778641850000,-500.0,0.00039726,15]
[422166127,1778641850000,-229.29757831,0.00039711,2]
[422166106,1778641850000,-172.86759399,0.00039688,2]
[422166128,1778641850000,-178.80283555,0.00039711,2]
[422166104,1778641850000,-185.64001367,0.00039688,2]
[422166110,1778641850000,-167.70053321,0.00039688,2]
[422166112,1778641850000,-196.55046664,0.00039711,2]
[422166113,1778641850000,-172.79725811,0.00039711,2]
[422166116,1778641850000,-152.16764211,0.00039711,2]
[422166119,1778641850000,-151.55315857,0.00039711,2]
[422166121,1778641850000,-189.09937142,0.00039711,2]
[422166114,1778641850000,-158.62464372,0.00039711,2]
[422166111,1778641850000,-160.26291576,0.00039688,2]
[422166115,1778641850000,-160.89069269,0.00039711,2]
[422166120,1778641850000,-269.88049397,0.00039711,2]
[422166117,1778641850000,-186.03685841,0.00039711,2]
[422166130,1778641850000,-163.85548779,0.00039711,2]
[422166123,1778641850000,-211.6175656,0.00039711,2]
[422166132,1778641850000,-151.62376104,0.00039711,2]
[422166131,1778641850000,-160.38092409,0.00039711,2]
[422166124,1778641850000,-216.34044642,0.00039711,2]
[422166125,1778641850000,-204.88098311,0.00039711,2]
[422166133,1778641850000,-152.27703605,0.00039711,2]
[422166118,1778641850000,-188.23361859,0.00039711,2]
[422166122,1778641850000,-163.57968877,0.00039711,2]
[422166126,1778641850000,-176.23344895,0.00039711,2]
[422166176,1778641851000,-500.0,0.00039726,15]
[422166186,1778641851000,-2001.9315,0.00039805,2]
[422166181,1778641851000,-500.0,0.00039726,15]
[422166182,1778641851000,-330.14,0.00039743,120]
[422166184,1778641851000,-1000.0,0.00039765,120]
[422166185,1778641851000,-889.84500097,0.000398,30]
[422166175,1778641851000,-500.0,0.00039726,15]
[422166190,1778641851000,-682.734439,0.00039824,30]
[422166187,1778641851000,-10008.0253,0.00039805,2]
[422166189,1778641851000,-682.734439,0.00039824,30]
[422166194,1778641851000,-151.0,0.00039824,30]
[422166193,1778641851000,-151.0,0.00039824,30]
[422166192,1778641851000,-682.734439,0.00039824,30]
[422166191,1778641851000,-682.734439,0.00039824,30]
[422166180,1778641851000,-500.0,0.00039726,15]
[422166197,1778641851000,-1816.11,0.0003987,120]
[422166188,1778641851000,-40394.0,0.00039824,120]
[422166178,1778641851000,-500.0,0.00039726,15]
[422166165,1778641851000,-500.0,0.00039726,15]
[422166174,1778641851000,-500.0,0.00039726,15]
[422166201,1778641851000,-1339.33076319,0.000399,20]
[422166159,1778641851000,-500.0,0.00039726,15]
[422166158,1778641851000,-500.0,0.00039726,15]
[422166160,1778641851000,-500.0,0.00039726,15]
[422166162,1778641851000,-500.0,0.00039726,15]
[422166163,1778641851000,-500.0,0.00039726,15]
[422166161,1778641851000,-500.0,0.00039726,15]
[422166172,1778641851000,-500.0,0.00039726,15]
[422166170,1778641851000,-500.0,0.00039726,15]
[422166169,1778641851000,-500.0,0.00039726,15]
[422166167,1778641851000,-510.63985178,0.00039726,15]
[422166164,1778641851000,-500.0,0.00039726,15]
[422166166,1778641851000,-500.0,0.00039726,15]
[422166171,1778641851000,-500.0,0.00039726,15]
[422166173,1778641851000,-500.0,0.00039726,15]
[422166179,1778641851000,-450.0,0.00039726,15]
[422166177,1778641851000,-500.0,0.00039726,15]
[422166183,1778641851000,-157.57,0.0003975,120]
[422166203,1778641851000,-2009.0,0.000399,7]
[422166168,1778641851000,-500.0,0.00039726,15]
[422166196,1778641851000,-330.14,0.00039843,120]
[422166219,1778641851000,-413.55,0.0004,120]
[422166218,1778641851000,-218.44,0.0004,120]
[422166217,1778641851000,-851.55,0.0004,120]
[422166226,1778641851000,-154.0,0.00030634,30]
[422166228,1778641851000,-300.0,0.00037143,2]
[422166227,1778641851000,-151.0,0.0003458,7]
[422166229,1778641851000,-151.0,0.00039824,30]
[422166230,1778641851000,-5515.8893824,0.0004,2]
[422166231,1778641851000,-1756.26465542,0.0004,2]
[422166232,1778641851000,-154.0,0.00031634,30]
[422166234,1778641851000,-151.0,0.00016438,2]
[422166233,1778641851000,-502.41499252,0.0004,2]
[422166235,1778641851000,-12900.57874987,0.0004,2]
[422166236,1778641851000,-156.0,0.0004,120]
[422166237,1778641851000,-232.55,0.0004,120]
[422166238,1778641851000,-2100.28883973,0.0004,2]
[422166200,1778641851000,-201.97,0.000399,16]
[422166220,1778641851000,-396.78,0.0004,120]
[422166224,1778641851000,-45386.51221979,0.0004,2]
[422166225,1778641851000,-151.0,0.00016438,2]
[422166221,1778641851000,-331.2,0.0004,120]
[422166205,1778641851000,-75417.76265207,0.0003997,2]
[422166222,1778641851000,-305.0,0.0004,30]
[422166195,1778641851000,-151.0,0.00039824,30]
[422166198,1778641851000,-2640.18453583,0.0003988,120]
[422166199,1778641851000,-159.66320043,0.0003989,2]
[422166202,1778641851000,-2829.53942268,0.000399,30]
[422166208,1778641851000,-151.0,0.0003997,30]
[422166215,1778641851000,-523.68,0.0004,120]
[422166210,1778641851000,-229.008359,0.0003997,30]
[422166204,1778641851000,-330.14,0.00039943,120]
[422166214,1778641851000,-3079.13025834,0.00039999,2]
[422166216,1778641851000,-688.52,0.0004,120]
[422166211,1778641851000,-229.008359,0.0003997,30]
[422166207,1778641851000,-151.0,0.0003997,30]
[422166209,1778641851000,-229.008359,0.0003997,30]
[422166213,1778641851000,-40394.0,0.00039999,120]
[422166223,1778641851000,-152.0,0.0004,120]
[422166206,1778641851000,-151.0,0.0003997,30]
[422166212,1778641851000,-229.008359,0.0003997,30]
[422166275,1778641852000,-1816.11,0.00040196,120]
[422166273,1778641852000,-2392.3319,0.00040148,30]
[422166274,1778641852000,-40394.0,0.00040173,120]
[422166270,1778641852000,-1500.0,0.000401,35]
[422166271,1778641852000,-165.16912315,0.00040117,2]
[422166269,1778641852000,-12411.95,0.00040071,30]
[422166268,1778641852000,-1433.2806459,0.00040056,2]
[422166276,1778641852000,-66061.66,0.000402,2]
[422166272,1778641852000,-330.14,0.00040143,120]
[422166278,1778641852000,-1091.287909,0.000402,7]
[422166287,1778641852000,-151.0,0.000402,30]
[422166281,1778641852000,-151.0,0.000402,30]
[422166277,1778641852000,-1091.287909,0.000402,7]
[422166282,1778641852000,-151.0,0.000402,30]
[422166280,1778641852000,-1091.287909,0.000402,7]
[422166283,1778641852000,-151.0,0.000402,30]
[422166284,1778641852000,-151.0,0.000402,30]